[Event "Dutch Meesterklasse 2024-25"]
[Site "Netherlands"]
[Date "2024.10.12"]
[Round "2.9"]
[White "Van de Oudeweetering, Arthur"]
[Black "Wempe, Joost"]
[Result "1/2-1/2"]
[ECO "B22"]
[WhiteElo "2249"]
[BlackElo "2248"]
[Annotator "RC"]
[PlyCount "124"]
[EventDate "2024.09.21"]
[EventType "team-tourn"]
[EventCountry "NED"]
[SourceTitle "playchess.com"]
[Source "ChessBase"]
[SourceQuality "1"]
[TimeControl "40/5400+30:1800+30"]

1. e4 {[%emt 0:00:04]} c5 {[%emt 0:00:05]} 2. c3 {[%emt 0:00:09]} Nf6 {[%emt 0:00:06]} 3. e5 {[%emt 0:00:07]} Nd5 {[%emt 0:00:05]} 4. Nf3 {[%emt 0:00:04]} Nc6 {[%emt 0:00:09]} 5. Bc4 {[%emt 0:00:16]} Nb6 {[%emt 0:00:07]} 6. Bb3 {[%emt 0:00:08]} d5 {[%emt 0:00:09]} 7. exd6 {[%emt 0:00:09]} Qxd6 {[%emt 0:00:08]} 8. O-O {[%emt 0:00:24]} Be6 {[%emt 0:00:11]} 9. Bxe6 {[%emt 0:01:07]} Qxe6 {[%emt 0:00:08]} 10. a4 {[%emt 0:01:03]} Qd7 {[%emt 0:01:32]} 11. a5 {[%emt 0:01:53]} Nd5 {[%emt 0:00:05]} 12. a6 {[%emt 0:05:02]} bxa6 {[%emt 0:03:11]} 13. Rxa6 {[%emt 0:05:54]} e6 {[%emt 0:05:33]} 14. d4 {[%emt 0:07:19]} Be7 {[%emt 0:12:16]} 15. Qa4 {[%emt 0:34:30]} Rc8 {[%emt 0:05:40]} 16. dxc5 {[%emt 0:15:25]} Bxc5 {[%emt 0:05:21]} 17. Rd1 {[%emt 0:03:15]} Qb7 {[%emt 0:16:05]} 18. Nbd2 {[%emt 0:11:31]} Nb6 {[%emt 0:09:27]} 19. Qb5 {[%emt 0:01:02]} O-O {[%emt 0:00:13]} 20. Ne4 {[%emt 0:01:44]} Rfd8 {[%emt 0:01:06]} 21. Rxd8+ {[%emt 0:04:29]} Rxd8 {[%emt 0:00:06]} 22. Qe2 {[%emt 0:00:34]} Be7 {[%emt 0:03:11]} 23. Bd2 {[%emt 0:01:53]} h6 {[%emt 0:03:54]} 24. h3 {[%emt 0:00:38]} Qd7 {[%emt 0:02:27]} 25. b4 {[%emt 0:00:57]} Qc7 {[%emt 0:11:11]} 26. b5 {[%emt 0:01:06]} Nb8 {[%emt 0:01:07]} 27. Ra1 {[%emt 0:00:30]} N8d7 {[%emt 0:03:51]} 28. Be3 {[%emt 0:01:06]} Nc5 {[%emt 0:01:05]} 29. Nxc5 {[%emt 0:00:28]} Bxc5 {[%emt 0:00:06]} 30. Bxc5 {[%emt 0:00:42]} Qxc5 {[%emt 0:00:04]} 31. Rxa7 {[%emt 0:00:28]} Nd5 {[%emt 0:04:00]} 32. Rb7 {[%emt 0:00:12]} Qc8 {[%emt 0:03:50]} 33. Ra7 {[%emt 0:00:05]} Nxc3 {[%emt 0:01:24]} 34. Qe5 {[%emt 0:00:43]} Qb8 {[%emt 0:03:45]} 35. Qxb8 {[%emt 0:01:53]} Rxb8 {[%emt 0:00:04]} 36. Nd4 {[%emt 0:00:58]} Nxb5 {[%emt 0:06:11]} 37. Nxb5 {[%emt 0:00:05]} Rxb5 {[%emt 0:00:03]} 38. h4 {[%emt 0:00:11]} Rb2 {[%emt 0:00:14]} 39. g3 {[%emt 0:00:21]} h5 {[%emt 0:00:13]} 40. Kg2 {[%emt 0:00:12]} g6 {[%emt 0:00:05]} 41. Kf3 {[%emt 0:30:27]} Kg7 {[%emt 0:30:05]} 42. Ke3 {[%emt 0:01:29]} Kf6 {[%emt 0:00:44]} 43. Rc7 {[%emt 0:00:00]} Ra2 {[%emt 0:00:00]} 44. Rb7 {[%emt 0:00:00]} e5 {[%emt 0:00:00]} 45. Rc7 {[%emt 0:00:00]} Ke6 {[%emt 0:00:00]} 46. Rb7 {[%emt 0:00:00]} Ra3+ {[%emt 0:00:00]} 47. Ke2 {[%emt 0:00:00]} Ra6 {[%emt 0:00:00]} 48. Ke3 {[%emt 0:00:00]} f6 {[%emt 0:00:00]} 49. Ke4 {[%emt 0:00:00]} f5+ {[%emt 0:00:00]} 50. Kf3 {[%emt 0:00:00]} f4 {[%emt 0:00:00]} 51. gxf4 {[%emt 0:00:00]} Ra3+ {[%emt 0:00:00]} 52. Kg2 {[%emt 0:00:00]} exf4 {[%emt 0:00:00]} 53. Rb5 {[%emt 0:00:00]} Kf6 {[%emt 0:00:00]} 54. Rc5 {[%emt 0:00:00]} Rd3 {[%emt 0:00:00]} 55. Ra5 {[%emt 0:00:00]} Ke6 {[%emt 0:00:00]} 56. Rg5 {[%emt 0:00:00]} Kf6 {[%emt 0:00:00]} 57. Ra5 {[%emt 0:00:00]} f3+ {[%emt 0:00:00]} 58. Kg3 {[%emt 0:00:00]} Rd4 {[%emt 0:00:00]} 59. Ra3 {[%emt 0:00:00]} Rg4+ {[%emt 0:00:00]} 60. Kh3 {[%emt 0:00:00]} Rf4 {[%emt 0:00:00]} 61. Kg3 {[%emt 0:00:00]} Rg4+ {[%emt 0:00:00]} 62. Kh3 {[%emt 0:00:00]} Rf4 {[%emt 0:00:42]} 1/2-1/2

[Event "Dutch Meesterklasse 2024-25"]
[Site "Netherlands"]
[Date "2024.10.12"]
[Round "2.9"]
[White "Theulings, Paul-Peter"]
[Black "Klaska, Philipp Leon"]
[Result "1/2-1/2"]
[ECO "A30"]
[WhiteElo "2049"]
[BlackElo "2281"]
[Annotator "RC"]
[PlyCount "102"]
[EventDate "2024.09.21"]
[EventType "team-tourn"]
[EventCountry "NED"]
[SourceTitle "playchess.com"]
[Source "ChessBase"]
[SourceQuality "1"]
[TimeControl "40/5400+30:1800+30"]

1. Nf3 {[%emt 0:00:04]} Nf6 {[%emt 0:00:24]} 2. c4 {[%emt 0:00:17]} b6 {[%emt 0:00:39]} 3. g3 {[%emt 0:00:39]} c5 {[%emt 0:00:31]} 4. Bg2 {[%emt 0:00:24]} Bb7 {[%emt 0:00:08]} 5. O-O {[%emt 0:00:23]} e6 {[%emt 0:00:38]} 6. Nc3 {[%emt 0:00:47]} Be7 {[%emt 0:01:15]} 7. d4 {[%emt 0:00:45]} cxd4 {[%emt 0:00:10]} 8. Qxd4 {[%emt 0:00:12]} O-O {[%emt 0:00:24]} 9. Nb5 {[%emt 0:09:50]} Nc6 {[%emt 0:12:55]} 10. Qd1 {[%emt 0:16:38]} d5 {[%emt 0:07:04]} 11. cxd5 {[%emt 0:00:36]} Nxd5 {[%emt 0:01:09]} 12. Nbd4 {[%emt 0:04:59]} Nxd4 {[%emt 0:09:20]} 13. Nxd4 {[%emt 0:00:12]} Rc8 {[%emt 0:01:42]} 14. Bd2 {[%emt 0:03:25]} Bf6 {[%emt 0:04:09]} 15. e3 {[%emt 0:00:15]} Bxd4 {[%emt 0:07:36]} 16. exd4 {[%emt 0:00:07]} Qd7 {[%emt 0:00:19]} 17. Qb3 {[%emt 0:08:52]} Nf6 {[%emt 0:05:36]} 18. Bxb7 {[%emt 0:01:13]} Qxb7 {[%emt 0:00:06]} 19. Rac1 {[%emt 0:01:45]} Nd5 {[%emt 0:11:01]} 20. Qd3 {[%emt 0:04:18]} Qe7 {[%emt 0:13:14]} 21. a3 {[%emt 0:03:45]} Rcd8 {[%emt 0:03:35]} 22. Rfe1 {[%emt 0:03:16]} a5 {[%emt 0:01:36]} 23. Qe4 {[%emt 0:01:51]} Qd7 {[%emt 0:00:46]} 24. Qd3 {[%emt 0:04:26]} Rc8 {[%emt 0:00:54]} 25. Qf1 {[%emt 0:06:48]} Rxc1 {[%emt 0:02:40]} 26. Rxc1 {[%emt 0:00:08]} Rc8 {[%emt 0:01:19]} 27. Rc4 {[%emt 0:03:30]} h6 {[%emt 0:01:19]} 28. Qc1 {[%emt 0:00:57]} Rd8 {[%emt 0:01:17]} 29. a4 {[%emt 0:06:39]} Kh7 {[%emt 0:01:02]} 30. b3 {[%emt 0:02:33]} Qe7 {[%emt 0:01:43]} 31. Be3 {[%emt 0:05:03]} Qf6 {[%emt 0:01:28]} 32. Qc2+ {[%emt 0:01:08]} Qg6 {[%emt 0:02:30]} 33. Qxg6+ {[%emt 0:01:16]} Kxg6 {[%emt 0:00:02]} 34. Kg2 {[%emt 0:00:15]} h5 {[%emt 0:00:58]} 35. Kf3 {[%emt 0:00:41]} Kf6 {[%emt 0:04:24]} 36. h3 {[%emt 0:01:09]} Ke7 {[%emt 0:00:34]} 37. Ke2 {[%emt 0:03:53]} Kd7 {[%emt 0:01:11]} 38. Bd2 {[%emt 0:01:40]} f6 {[%emt 0:02:20]} 39. f3 {[%emt 0:00:45]} Rb8 {[%emt 0:00:49]} 40. Rc1 {[%emt 0:02:06]} Rd8 {[%emt 0:00:30]} 41. Rc4 {[%emt 0:30:44]} g5 {[%emt 0:09:03]} 42. Kf2 {[%emt 0:00:00]} Rg8 {[%emt 0:04:56]} 43. g4 {[%emt 0:00:00]} hxg4 {[%emt 0:00:39]} 44. hxg4 {[%emt 0:00:00]} Kd6 {[%emt 0:04:58]} 45. Rc1 {[%emt 0:00:00]} Rh8 {[%emt 0:02:08]} 46. Kg2 {[%emt 0:00:00]} Rh7 {[%emt 0:03:06]} 47. Rc4 {[%emt 0:00:00]} Ra7 {[%emt 0:02:07]} 48. Kf2 {[%emt 0:00:00]} Ne7 {[%emt 0:01:32]} 49. f4 {[%emt 0:00:00]} gxf4 {[%emt 0:00:55]} 50. Bxf4+ {[%emt 0:00:00]} Kd7 {[%emt 0:01:46]} 51. Rc1 {[%emt 0:00:00]} Nd5 {[%emt 0:00:49]} 1/2-1/2

[Event "Dutch Meesterklasse 2024-25"]
[Site "Netherlands"]
[Date "2024.10.12"]
[Round "2.10"]
[White "Lenaerts, Lennert"]
[Black "Sminia, Jelmer"]
[Result "1-0"]
[ECO "C12"]
[WhiteElo "2297"]
[BlackElo "2135"]
[Annotator "RC"]
[PlyCount "55"]
[EventDate "2024.09.21"]
[EventType "team-tourn"]
[EventCountry "NED"]
[SourceTitle "playchess.com"]
[Source "ChessBase"]
[SourceQuality "1"]
[TimeControl "40/5400+30:1800+30"]

1. e4 {[%emt 0:00:11]} e6 {[%emt 0:00:13]} 2. d4 {[%emt 0:00:08]} d5 {[%emt 0:00:08]} 3. Nc3 {[%emt 0:00:06]} Nf6 {[%emt 0:00:26]} 4. Bg5 {[%emt 0:00:52]} Bb4 {[%emt 0:00:28]} 5. e5 {[%emt 0:01:02]} h6 {[%emt 0:00:09]} 6. Bd2 {[%emt 0:00:12]} Bxc3 {[%emt 0:00:52]} 7. bxc3 {[%emt 0:00:04]} Ne4 {[%emt 0:00:08]} 8. Bc1 {[%emt 0:00:08]} c5 {[%emt 0:01:14]} 9. Ne2 {[%emt 0:00:55]} Qa5 {[%emt 1:31:22]} 10. f3 {[%emt 0:04:32]} Ng5 {[%emt 0:00:00]} 11. h4 {[%emt 0:00:15]} Nh7 {[%emt 0:00:00]} 12. Kf2 {[%emt 0:06:52]} Bd7 {[%emt 0:00:00]} 13. f4 {[%emt 0:04:19]} Na6 {[%emt 0:00:00]} 14. Bd2 {[%emt 0:08:14]} Qa4 {[%emt 0:00:00]} 15. Rh3 {[%emt 0:04:57]} Rc8 {[%emt 0:00:00]} 16. Rc1 {[%emt 0:03:58]} f5 {[%emt 0:00:00]} 17. Be3 {[%emt 0:05:09]} O-O {[%emt 0:00:00]} 18. Ng1 {[%emt 0:05:34]} cxd4 {[%emt 0:00:00]} 19. cxd4 {[%emt 0:00:08]} Nb4 {[%emt 0:00:00]} 20. Bd3 {[%emt 0:07:28]} Qxa2 {[%emt 0:00:00]} 21. Bd2 {[%emt 0:00:40]} Nxd3+ {[%emt 0:00:00]} 22. Rxd3 {[%emt 0:00:05]} Ba4 {[%emt 0:00:00]} 23. Bb4 {[%emt 0:01:48]} Rf7 {[%emt 0:00:00]} 24. Ra3 {[%emt 0:01:11]} Rxc2+ {[%emt 0:00:00]} 25. Ne2 {[%emt 0:00:29]} Qc4 {[%emt 0:01:11]} 26. Rxa4 {[%emt 0:00:26]} Rxe2+ {[%emt 0:00:38]} 27. Kf3 {[%emt 0:00:05]} Qb5 {[%emt 0:04:13]} 28. Rc5 {[%emt 0:00:15]} 1-0

[Event "Dutch Meesterklasse 2024-25"]
[Site "Netherlands"]
[Date "2024.10.12"]
[Round "2.10"]
[White "Hummel, Erik-Jan"]
[Black "Van Beek, Lucien"]
[Result "1-0"]
[ECO "B28"]
[WhiteElo "2244"]
[BlackElo "2342"]
[Annotator "RC"]
[PlyCount "153"]
[EventDate "2024.09.21"]
[EventType "team-tourn"]
[EventCountry "NED"]
[SourceTitle "playchess.com"]
[Source "ChessBase"]
[SourceQuality "1"]
[TimeControl "40/5400+30:1800+30"]

1. e4 {[%emt 0:00:08]} c5 {[%emt 0:00:12]} 2. Nf3 {[%emt 0:00:22]} a6 {[%emt 0:00:16]} 3. c4 {[%emt 0:02:37]} Nc6 {[%emt 0:00:14]} 4. d4 {[%emt 0:00:20]} cxd4 {[%emt 0:00:06]} 5. Nxd4 {[%emt 0:00:08]} e5 {[%emt 0:00:23]} 6. Nc2 {[%emt 0:02:12]} Bc5 {[%emt 0:11:33]} 7. Bd3 {[%emt 0:06:52]} Nge7 {[%emt 0:15:05]} 8. O-O {[%emt 0:05:36]} d6 {[%emt 0:07:22]} 9. Nc3 {[%emt 0:02:32]} Nd4 {[%emt 0:19:28]} 10. Ne3 {[%emt 0:05:37]} O-O {[%emt 0:05:51]} 11. Ned5 {[%emt 0:06:35]} Nxd5 {[%emt 0:01:31]} 12. Nxd5 {[%emt 0:00:27]} Qh4 {[%emt 0:01:30]} 13. Be3 {[%emt 0:05:09]} Bg4 {[%emt 0:13:50]} 14. f3 {[%emt 0:00:39]} Be6 {[%emt 0:00:30]} 15. b4 {[%emt 0:04:42]} Ba7 {[%emt 0:00:01]} 16. Kh1 {[%emt 0:12:50]} Bxd5 {[%emt 0:07:21]} 17. cxd5 {[%emt 0:01:46]} Nb5 {[%emt 0:04:48]} 18. Bxa7 {[%emt 0:03:07]} Nxa7 {[%emt 0:00:03]} 19. Qd2 {[%emt 0:06:15]} Qd8 {[%emt 0:03:28]} 20. a4 {[%emt 0:00:32]} Qb6 {[%emt 0:00:47]} 21. Be2 {[%emt 0:05:27]} Rfc8 {[%emt 0:00:16]} 22. f4 {[%emt 0:06:41]} exf4 {[%emt 0:01:00]} 23. Rxf4 {[%emt 0:01:43]} Qc7 {[%emt 0:01:20]} 24. Raf1 {[%emt 0:01:51]} f6 {[%emt 0:00:20]} 25. Bg4 {[%emt 0:00:38]} Qc3 {[%emt 0:00:21]} 26. Be6+ {[%emt 0:00:35]} Kh8 {[%emt 0:01:20]} 27. Qd1 {[%emt 0:01:42]} Rc7 {[%emt 0:02:47]} 28. Qh5 {[%emt 0:04:24]} Qe5 {[%emt 0:01:19]} 29. Qe2 {[%emt 0:04:37]} Nc6 {[%emt 0:01:00]} 30. Qc4 {[%emt 0:02:51]} b5 {[%emt 0:00:26]} 31. Qc1 {[%emt 0:00:38]} Raa7 {[%emt 0:00:54]} 32. Rf5 {[%emt 0:01:18]} Ne7 {[%emt 0:00:36]} 33. Rxe5 {[%emt 0:00:54]} Rxc1 {[%emt 0:00:08]} 34. Rxc1 {[%emt 0:00:22]} fxe5 {[%emt 0:00:15]} 35. a5 {[%emt 0:00:47]} g6 {[%emt 0:00:29]} 36. Kg1 {[%emt 0:00:50]} Kg7 {[%emt 0:00:03]} 37. Kf2 {[%emt 0:00:18]} h6 {[%emt 0:01:16]} 38. Ke3 {[%emt 0:00:29]} g5 {[%emt 0:00:26]} 39. g3 {[%emt 0:01:00]} Rb7 {[%emt 0:00:09]} 40. h4 {[%emt 0:04:20]} gxh4 {[%emt 0:00:37]} 41. gxh4 {[%emt 0:30:02]} h5 {[%emt 0:03:01]} 42. Rg1+ {[%emt 0:00:00]} Kh6 {[%emt 0:02:16]} 43. Rc1 {[%emt 0:00:00]} Kg7 {[%emt 0:05:50]} 44. Kf3 {[%emt 0:00:00]} Ra7 {[%emt 0:00:43]} 45. Kg3 {[%emt 0:00:00]} Rb7 {[%emt 0:02:34]} 46. Rc3 {[%emt 0:00:00]} Ra7 {[%emt 0:00:08]} 47. Kf2 {[%emt 0:00:00]} Rb7 {[%emt 0:00:15]} 48. Rg3+ {[%emt 0:00:00]} Kh6 {[%emt 0:00:12]} 49. Rc3 {[%emt 0:00:00]} Kg7 {[%emt 0:00:06]} 50. Ke1 {[%emt 0:00:00]} Ra7 {[%emt 0:00:10]} 51. Kd2 {[%emt 0:00:00]} Rb7 {[%emt 0:02:05]} 52. Bh3 {[%emt 0:00:00]} Ra7 {[%emt 0:09:27]} 53. Rg3+ {[%emt 0:00:00]} Kh6 {[%emt 0:01:33]} 54. Rf3 {[%emt 0:00:00]} Kg7 {[%emt 0:00:19]} 55. Rc3 {[%emt 0:00:00]} Kh6 {[%emt 0:01:20]} 56. Bf1 {[%emt 0:00:00]} Rd7 {[%emt 0:02:13]} 57. Be2 {[%emt 0:00:00]} Ra7 {[%emt 0:00:28]} 58. Rf3 {[%emt 0:00:00]} Kg7 {[%emt 0:00:53]} 59. Rg3+ {[%emt 0:00:00]} Kh6 {[%emt 0:00:55]} 60. Rg5 {[%emt 0:00:00]} Ra8 {[%emt 0:03:36]} 61. Rxh5+ {[%emt 0:00:00]} Kg7 {[%emt 0:00:10]} 62. Rg5+ {[%emt 0:00:00]} Kf6 {[%emt 0:00:05]} 63. Rg3 {[%emt 0:00:00]} Ng6 {[%emt 0:00:18]} 64. Rc3 {[%emt 0:00:35]} Nxh4 {[%emt 0:02:02]} 65. Rc6 {[%emt 0:00:17]} Ke7 {[%emt 0:02:03]} 66. Rc7+ {[%emt 0:00:08]} Kf6 {[%emt 0:00:02]} 67. Rd7 {[%emt 0:00:10]} Ng6 {[%emt 0:00:18]} 68. Rxd6+ {[%emt 0:00:16]} Kg5 {[%emt 0:00:20]} 69. Re6 {[%emt 0:00:46]} Ra7 {[%emt 0:00:01]} 70. Ke3 {[%emt 0:00:28]} Ra8 {[%emt 0:00:08]} 71. Bf1 {[%emt 0:00:55]} Rf8 {[%emt 0:01:58]} 72. Bh3 {[%emt 0:00:45]} Rh8 {[%emt 0:00:01]} 73. Bf5 {[%emt 0:00:27]} Nh4 {[%emt 0:00:29]} 74. Rxe5 {[%emt 0:00:14]} Ng2+ {[%emt 0:00:23]} 75. Kd4 {[%emt 0:00:19]} Kf4 {[%emt 0:00:16]} 76. Re6 {[%emt 0:01:10]} Ne3 {[%emt 0:00:27]} 77. Rxa6 {[%emt 0:00:36]} 1-0

[Event "Dutch Meesterklasse 2024-25"]
[Site "Netherlands"]
[Date "2024.11.09"]
[Round "3.1"]
[White "De Boer, Eelke"]
[Black "Lombaers, Peter"]
[Result "1-0"]
[ECO "B33"]
[WhiteElo "2421"]
[BlackElo "2363"]
[Annotator "RC"]
[PlyCount "150"]
[EventDate "2024.09.21"]
[EventType "team-tourn"]
[EventCountry "NED"]
[SourceTitle "playchess.com"]
[Source "ChessBase"]
[SourceQuality "1"]
[TimeControl "40/5400+30:1800+30"]

1. e4 {[%emt 0:00:04]} c5 {[%emt 0:00:04]} 2. Nf3 {[%emt 0:00:06]} Nc6 {[%emt 0:00:04]} 3. d4 {[%emt 0:00:08]} cxd4 {[%emt 0:00:04]} 4. Nxd4 {[%emt 0:00:11]} Nf6 {[%emt 0:00:04]} 5. Nc3 {[%emt 0:00:17]} e5 {[%emt 0:00:05]} 6. Ndb5 {[%emt 0:00:07]} d6 {[%emt 0:00:06]} 7. Bg5 {[%emt 0:00:10]} a6 {[%emt 0:00:04]} 8. Na3 {[%emt 0:00:09]} b5 {[%emt 0:00:04]} 9. Nab1 {[%emt 0:00:09]} Be7 {[%emt 0:00:06]} 10. Bxf6 {[%emt 0:00:10]} Bxf6 {[%emt 0:00:06]} 11. a4 {[%emt 0:00:07]} b4 {[%emt 0:00:07]} 12. Nd5 {[%emt 0:00:07]} O-O {[%emt 0:00:18]} 13. Bc4 {[%emt 0:00:11]} Bg5 {[%emt 0:00:14]} 14. O-O {[%emt 0:00:10]} Na5 {[%emt 0:00:12]} 15. Be2 {[%emt 0:00:35]} Rb8 {[%emt 0:00:19]} 16. Nd2 {[%emt 0:00:11]} Kh8 {[%emt 0:08:56]} 17. Nc4 {[%emt 0:01:35]} Nxc4 {[%emt 0:01:29]} 18. Bxc4 {[%emt 0:00:08]} a5 {[%emt 0:00:17]} 19. b3 {[%emt 0:02:50]} Be6 {[%emt 0:02:26]} 20. Qe2 {[%emt 0:05:08]} Qd7 {[%emt 0:11:16]} 21. Rad1 {[%emt 0:04:39]} Bd8 {[%emt 0:08:13]} 22. c3 {[%emt 0:12:44]} Bxd5 {[%emt 0:16:34]} 23. Rxd5 {[%emt 0:00:09]} bxc3 {[%emt 0:00:35]} 24. Qd3 {[%emt 0:00:09]} Qg4 {[%emt 0:09:58]} 25. f3 {[%emt 0:12:23]} Bb6+ {[%emt 0:00:47]} 26. Kh1 {[%emt 0:00:09]} Qh4 {[%emt 0:01:26]} 27. Qxc3 {[%emt 0:02:50]} f5 {[%emt 0:05:30]} 28. exf5 {[%emt 0:14:38]} Rxf5 {[%emt 0:00:11]} 29. Rb5 {[%emt 0:01:04]} Rff8 {[%emt 0:03:57]} 30. Qd2 {[%emt 0:06:26]} Qh6 {[%emt 0:09:45]} 31. Qxh6 {[%emt 0:01:56]} gxh6 {[%emt 0:00:04]} 32. Rd1 {[%emt 0:00:14]} Bc7 {[%emt 0:06:43]} 33. Rc1 {[%emt 0:09:33]} Rxb5 {[%emt 0:03:30]} 34. Bxb5 {[%emt 0:00:39]} Rf7 {[%emt 0:03:06]} 35. Rc6 {[%emt 0:01:05]} Re7 {[%emt 0:04:37]} 36. Kg1 {[%emt 0:03:54]} d5 {[%emt 0:01:15]} 37. Rxh6 {[%emt 0:00:22]} e4 {[%emt 0:00:56]} 38. fxe4 {[%emt 0:00:31]} dxe4 {[%emt 0:00:49]} 39. Kf2 {[%emt 0:01:48]} Kg7 {[%emt 0:02:02]} 40. Ra6 {[%emt 0:00:31]} e3+ {[%emt 0:03:10]} 41. Ke2 {[%emt 0:30:31]} Bxh2 {[%emt 0:15:51]} 42. Rxa5 {[%emt 0:00:00]} Kf6 {[%emt 0:02:09]} 43. Bd3 {[%emt 0:00:00]} Bg1 {[%emt 0:01:54]} 44. Rf5+ {[%emt 0:00:00]} Ke6 {[%emt 0:00:11]} 45. Rh5 {[%emt 0:00:00]} Rg7 {[%emt 0:00:12]} 46. Be4 {[%emt 0:00:00]} Kd6 {[%emt 0:04:17]} 47. Rxh7 {[%emt 0:00:00]} Rg4 {[%emt 0:00:02]} 48. Rd7+ {[%emt 0:00:00]} Ke5 {[%emt 0:04:22]} 49. Bf3 {[%emt 0:00:44]} Rb4 {[%emt 0:00:03]} 50. Rd1 {[%emt 0:06:51]} Bf2 {[%emt 0:00:03]} 51. Bd5 {[%emt 0:00:13]} Rb6 {[%emt 0:03:03]} 52. a5 {[%emt 0:06:46]} Rb5 {[%emt 0:00:01]} 53. a6 {[%emt 0:00:08]} Ra5 {[%emt 0:00:19]} 54. Bc4 {[%emt 0:00:08]} Ke4 {[%emt 0:02:08]} 55. b4 {[%emt 0:03:38]} Ra4 {[%emt 0:00:01]} 56. Bd3+ {[%emt 0:00:09]} Kf4 {[%emt 0:00:12]} 57. Rc1 {[%emt 0:00:23]} Ra2+ {[%emt 0:01:07]} 58. Kf1 {[%emt 0:01:45]} Bh4 {[%emt 0:02:19]} 59. b5 {[%emt 0:02:26]} Bd8 {[%emt 0:00:54]} 60. Rc2 {[%emt 0:01:12]} Ra1+ {[%emt 0:00:51]} 61. Ke2 {[%emt 0:00:02]} Bb6 {[%emt 0:00:14]} 62. Bc4 {[%emt 0:02:12]} Rg1 {[%emt 0:00:49]} 63. Bd5 {[%emt 0:00:23]} Ke5 {[%emt 0:00:28]} 64. Bc6 {[%emt 0:01:20]} Ra1 {[%emt 0:00:01]} 65. Bf3 {[%emt 0:02:32]} Kd4 {[%emt 0:00:36]} 66. Bh5 {[%emt 0:01:42]} Ba5 {[%emt 0:01:12]} 67. Bg6 {[%emt 0:01:17]} Re1+ {[%emt 0:00:30]} 68. Kf3 {[%emt 0:00:02]} Rf1+ {[%emt 0:00:05]} 69. Kg3 {[%emt 0:00:26]} Rf6 {[%emt 0:00:39]} 70. Bh5 {[%emt 0:00:50]} Kd3 {[%emt 0:00:54]} 71. Ra2 {[%emt 0:00:42]} Bc7+ {[%emt 0:00:03]} 72. Kh4 {[%emt 0:00:50]} Rf2 {[%emt 0:01:00]} 73. Ra3+ {[%emt 0:00:32]} Kd4 {[%emt 0:00:24]} 74. a7 {[%emt 0:00:25]} Bd8+ {[%emt 0:00:35]} 75. Kh3 {[%emt 0:00:22]} Kd5 1-0

[Event "Dutch Meesterklasse 2024-25"]
[Site "Netherlands"]
[Date "2024.11.09"]
[Round "3.2"]
[White "Kerigan, Demre"]
[Black "Labruyere, Roger"]
[Result "1-0"]
[ECO "B52"]
[WhiteElo "2352"]
[BlackElo "2280"]
[Annotator "RC"]
[PlyCount "101"]
[EventDate "2024.09.21"]
[EventType "team-tourn"]
[EventCountry "NED"]
[SourceTitle "playchess.com"]
[Source "ChessBase"]
[SourceQuality "1"]
[TimeControl "40/5400+30:1800+30"]

1. e4 {[%emt 0:00:04]} c5 {[%emt 0:36:43]} 2. Nf3 {[%emt 0:02:21]} d6 {[%emt 0:00:04]} 3. Bb5+ {[%emt 0:00:14]} Bd7 {[%emt 0:00:04]} 4. Bxd7+ {[%emt 0:00:17]} Nxd7 {[%emt 0:00:05]} 5. O-O {[%emt 0:00:23]} Ngf6 {[%emt 0:00:05]} 6. Re1 {[%emt 0:00:59]} e6 {[%emt 0:00:05]} 7. c3 {[%emt 0:00:06]} Be7 {[%emt 0:00:14]} 8. d4 {[%emt 0:00:28]} O-O {[%emt 0:00:12]} 9. h3 {[%emt 0:04:37]} cxd4 {[%emt 0:00:08]} 10. cxd4 {[%emt 0:00:07]} d5 {[%emt 0:00:09]} 11. e5 {[%emt 0:01:32]} Ne4 {[%emt 0:01:35]} 12. Nbd2 {[%emt 0:00:07]} Nxd2 {[%emt 0:01:03]} 13. Bxd2 {[%emt 0:00:11]} Nb6 {[%emt 0:03:23]} 14. b3 {[%emt 0:07:55]} Qd7 {[%emt 0:00:58]} 15. a4 {[%emt 0:01:00]} Rac8 {[%emt 0:00:46]} 16. Re3 {[%emt 0:05:52]} Rc6 {[%emt 0:04:20]} 17. Ne1 {[%emt 0:04:16]} f5 {[%emt 0:09:18]} 18. Nd3 {[%emt 0:02:33]} Na8 {[%emt 0:05:33]} 19. Rg3 {[%emt 0:08:37]} Kh8 {[%emt 0:03:28]} 20. h4 {[%emt 0:09:10]} Bxh4 {[%emt 0:13:52]} 21. Rh3 {[%emt 0:00:17]} Bd8 {[%emt 0:00:26]} 22. Qh5 {[%emt 0:04:44]} g6 {[%emt 0:00:23]} 23. Qxg6 {[%emt 0:03:10]} Rg8 {[%emt 0:04:36]} 24. Qh5 {[%emt 0:00:30]} Rc7 {[%emt 0:02:29]} 25. Rd1 {[%emt 0:12:55]} Qe8 {[%emt 0:03:26]} 26. Nf4 {[%emt 0:02:00]} Qxh5 {[%emt 0:00:50]} 27. Rxh5 {[%emt 0:00:08]} Rc6 {[%emt 0:02:15]} 28. Bb4 {[%emt 0:11:14]} Bg5 {[%emt 0:01:45]} 29. Nh3 {[%emt 0:01:42]} Bd8 {[%emt 0:02:50]} 30. Bd6 {[%emt 0:02:21]} Nc7 {[%emt 0:02:26]} 31. Nf4 {[%emt 0:03:13]} Bg5 {[%emt 0:00:09]} 32. Rxg5 {[%emt 0:04:30]} Rxg5 {[%emt 0:00:05]} 33. Bxc7 {[%emt 0:00:06]} Rg4 {[%emt 0:00:14]} 34. Bd8 {[%emt 0:00:24]} Rxf4 {[%emt 0:00:17]} 35. f3 {[%emt 0:00:08]} h6 {[%emt 0:01:35]} 36. Kf2 {[%emt 0:00:25]} Rc3 {[%emt 0:00:40]} 37. Ke2 {[%emt 0:04:13]} Kh7 {[%emt 0:01:03]} 38. Rd3 {[%emt 0:00:46]} Rc8 {[%emt 0:00:57]} 39. Bf6 {[%emt 0:00:29]} Rf8 {[%emt 0:00:44]} 40. g3 {[%emt 0:00:15]} Re4+ {[%emt 0:00:35]} 41. fxe4 {[%emt 0:30:07]} fxe4 {[%emt 0:30:11]} 42. Rc3 {[%emt 0:00:07]} Rf7 {[%emt 0:00:00]} 43. Rc8 {[%emt 0:00:00]} Kg6 {[%emt 0:00:00]} 44. Rg8+ {[%emt 0:00:00]} Kh7 {[%emt 0:00:00]} 45. Re8 {[%emt 0:00:00]} Rc7 {[%emt 0:00:00]} 46. Rxe6 {[%emt 0:00:00]} Rc2+ {[%emt 0:00:00]} 47. Kd1 {[%emt 0:00:00]} Rb2 {[%emt 0:00:00]} 48. Re7+ {[%emt 0:00:00]} Kg8 {[%emt 0:00:00]} 49. e6 {[%emt 0:00:00]} Rf2 {[%emt 0:00:00]} 50. Rg7+ {[%emt 0:00:00]} Kh8 {[%emt 0:00:00]} 51. Be5 {[%emt 0:00:00]} 1-0